fUSD/lending_fUSD_20250524
["ID","MTS","AMOUNT","RATE_DAILY","PERIOD"]
[362186529,1748074232646,-2751.0,0.00031633,120]
[362186531,1748074232655,-211.08,0.00031635,2]
[362186533,1748074232664,-211.08,0.00031643,2]
[362186536,1748074232674,-211.08,0.00031651,2]
[362186537,1748074232684,-211.08,0.0003166,2]
[362186540,1748074232694,-211.08,0.00031668,2]
[362186542,1748074232704,-211.08,0.00031676,2]
[362186552,1748074232859,-211.08,0.00031685,2]
[362186555,1748074232919,-639.41506511,0.00031685,7]
[362186560,1748074232951,-60.58493489,0.00031685,7]
[362186561,1748074232960,-211.08,0.00031693,2]
[362186564,1748074232970,-700.0,0.00031694,7]
[362186566,1748074232979,-211.08,0.00031701,2]
[362186568,1748074232992,-211.08,0.0003171,2]
[362186570,1748074233002,-211.08,0.00031718,2]
[362186572,1748074233011,-211.08,0.00031726,2]
[362186574,1748074233020,-211.08,0.00031735,2]
[362186576,1748074233031,-211.08,0.00031743,2]
[362186578,1748074233040,-211.08,0.00031751,2]
[362186579,1748074233050,-211.08,0.0003176,2]
[362186581,1748074233059,-201.93286099,0.00031781,2]
[362186583,1748074233069,-209.0,0.000318,6]
[362186585,1748074233078,-193.48328504,0.00031837,2]
[362186587,1748074233088,-500.0,0.00031837,2]
[362186589,1748074233097,-500.0,0.00031837,2]
[362186591,1748074233107,-500.0,0.00031837,2]
[362186593,1748074233117,-266.29354826,0.00031837,2]
[362186595,1748074233127,-14619.47,0.00031839,2]
[362186598,1748074233138,-500.0,0.00031867,7]
[362186600,1748074233149,-300.0,0.0003187,2]
[362186602,1748074233159,-400.0,0.0003187,2]
[362186604,1748074233169,-1427.7,0.00031896,120]
[362186606,1748074233179,-500.0,0.00031897,7]
[362186608,1748074233189,-150.0,0.00031899,2]
[362186609,1748074233199,-150.0,0.00031899,2]
[362186612,1748074233208,-3787.25429312,0.00031899,2]
[362187069,1748074238031,-3060.288,0.0003079,2]
[362187071,1748074238044,-3708.2229181,0.0003079,2]
[362187073,1748074238056,-17131.4890819,0.0003079,2]
[362187075,1748074238066,-422.66528653,0.00031899,2]
[362187077,1748074238076,-1500.0,0.00031922,120]
[362187079,1748074238086,-165.79,0.00031922,2]
[362187081,1748074238096,-161.09,0.00031931,2]
[362187083,1748074238106,-500.0,0.00031956,7]
[362187085,1748074238116,-600.0,0.00032042,2]
[362187087,1748074238126,-150.99,0.00032232,2]
[362187090,1748074238138,-976.92,0.00032232,2]
[362187092,1748074238148,-8633.87,0.00032232,2]
[362187094,1748074238158,-668.65185757,0.0003224,2]
[362187096,1748074238167,-668.65185757,0.0003224,2]
[362187098,1748074238176,-1438.09495884,0.0003224,2]
[362187099,1748074238186,-151.0,0.0003224,2]
[362187101,1748074238195,-1000.0,0.0003226,2]
[362187103,1748074238206,-214.15237884,0.00032329,2]
[362187105,1748074238216,-700.0,0.00032346,7]
[362187107,1748074238226,-560.0,0.00032429,2]
[362187110,1748074238236,-700.0,0.00032436,7]
[362187111,1748074238246,-500.0,0.00032579,7]
[362187113,1748074238255,-500.0,0.0003259,7]
[362187115,1748074238265,-700.0,0.000326,7]
[362187117,1748074238275,-500.0,0.00032621,7]
[362187119,1748074238284,-861.32,0.00032675,2]
[362187122,1748074238294,-2000.0,0.000327,2]
[362187123,1748074238303,-693.3919763,0.00032788,2]
[362187126,1748074238313,-500.0,0.00032808,7]
[362187127,1748074238323,-223.0315306,0.00032873,2]
[362187130,1748074238332,-500.0,0.00032885,7]
[362187132,1748074238342,-700.0,0.00032967,7]
[362187133,1748074238351,-500.0,0.00032979,7]
[362187136,1748074238361,-160.0,0.00033,2]
[362187138,1748074238370,-160.0,0.00033,2]
[362187139,1748074238379,-160.0,0.00033,2]
[362187142,1748074238389,-160.0,0.00033,2]
[362187143,1748074238399,-160.0,0.00033,2]
[362187145,1748074238412,-160.0,0.00033,2]
[362187148,1748074238422,-160.0,0.00033,2]
[362187150,1748074238431,-160.0,0.00033,2]
[362187152,1748074238441,-160.0,0.00033,2]
[362187154,1748074238451,-160.0,0.00033,2]
[362187156,1748074238462,-160.0,0.00033,2]
[362187158,1748074238471,-160.0,0.00033,2]
[362187160,1748074238482,-160.0,0.00033,2]
[362187162,1748074238491,-160.0,0.00033,2]
[362187164,1748074238501,-160.0,0.00033,2]
[362187166,1748074238511,-160.0,0.00033,2]
[362187168,1748074238520,-160.0,0.00033,2]
[362187170,1748074238532,-160.0,0.00033,2]
[362187173,1748074238542,-160.0,0.00033,2]
[362187174,1748074238552,-160.0,0.00033,2]
[362187177,1748074238561,-184.4,0.00033,2]
[362187179,1748074238571,-1681.204,0.00033,34]
[362187181,1748074238580,-1911.0,0.00033,120]
[362187183,1748074238589,-151.0,0.00033014,2]
[362187185,1748074238598,-160.12375616,0.00033014,2]
[362187187,1748074238607,-501.17659505,0.00033059,7]
[362187189,1748074238617,-206.22256382,0.0003315,28]
[362187191,1748074238626,-200.0,0.00033177,10]
[362187193,1748074238636,-600.0,0.000332,2]
[362187195,1748074238645,-500.0,0.00033211,7]
[362187197,1748074238653,-150.0,0.00033269,2]
[362187198,1748074238661,-6358.1385063,0.00033295,5]
[362187200,1748074238670,-160.0,0.000333,3]
[362187202,1748074238679,-719.04747942,0.00033336,2]
[362187204,1748074238688,-155.5,0.000335,31]
[362187206,1748074238698,-155.5,0.000335,31]
[362187209,1748074238708,-155.5,0.000335,31]
[362187210,1748074238716,-155.5,0.000335,31]
[362187212,1748074238725,-155.5,0.000335,31]
[362187214,1748074238732,-207.0,0.00033537,2]
[362187216,1748074238741,-500.0,0.00033578,7]
[362187218,1748074238750,-5735.03325508,0.00033604,120]
[362187220,1748074238760,-693.3919763,0.00033609,2]
[362187222,1748074238769,-156.587,0.00033609,2]
[362187224,1748074238779,-700.0,0.00033654,7]
[362187227,1748074238789,-155.5,0.000338,31]
[362187228,1748074238798,-155.5,0.000338,31]
[362187231,1748074238808,-155.5,0.000338,31]
[362187233,1748074238818,-155.5,0.000338,31]
[362187253,1748074239000,-155.5,0.000338,31]
[362187256,1748074239021,-155.5,0.000338,31]
[362187258,1748074239030,-155.5,0.000338,31]
[362187260,1748074239040,-155.5,0.000338,31]
[362187262,1748074239049,-155.5,0.000338,31]
[362187264,1748074239058,-155.5,0.000338,31]
[362187266,1748074239068,-745.65223616,0.00033884,2]
[362187268,1748074239082,-1260.47447,0.0003394,4]
[362187270,1748074239092,-700.0,0.00033984,7]
[362187272,1748074239102,-500.0,0.00034108,7]
[362187274,1748074239111,-155.5,0.000342,31]
[362187276,1748074239119,-155.5,0.000342,31]
[362187277,1748074239126,-155.5,0.000342,31]
[362187279,1748074239136,-155.5,0.000342,31]
[362187281,1748074239146,-155.5,0.000342,31]
[362187283,1748074239157,-155.5,0.000342,31]
[362187286,1748074239167,-155.5,0.000342,31]
[362187288,1748074239176,-155.5,0.000342,31]
[362187290,1748074239186,-155.5,0.000342,31]
[362187292,1748074239195,-231.28369723,0.00034242,2]
[362187293,1748074239204,-150.0,0.00034275,120]
[362187296,1748074239214,-160.0,0.000343,8]
[362187298,1748074239223,-600.0,0.00034358,2]
[362187300,1748074239233,-1000.0,0.0003437,2]
[362187302,1748074239242,-700.0,0.000344,7]
[362187304,1748074239252,-700.0,0.00034426,7]
[362187305,1748074239261,-773.2413689,0.00034432,2]
[362187307,1748074239270,-500.0,0.00034452,60]
[362187309,1748074239280,-1000.0,0.00034481,2]
[362187311,1748074239289,-155.5,0.000345,31]
[362187313,1748074239299,-155.5,0.000345,31]
[362187316,1748074239309,-155.5,0.000345,31]
[362187318,1748074239319,-155.5,0.000345,31]
[362187320,1748074239329,-155.5,0.000345,31]
[362187322,1748074239339,-155.5,0.000345,31]
[362187324,1748074239348,-155.5,0.000345,31]
[362187326,1748074239357,-155.5,0.000345,31]
[362187328,1748074239366,-155.5,0.000345,31]
[362187330,1748074239376,-155.5,0.000345,31]
[362187332,1748074239385,-353.58,0.00034521,2]
[362187334,1748074239395,-150.43,0.00034521,2]
[362187336,1748074239404,-150.43,0.00034521,2]
[362187338,1748074239414,-150.43,0.00034521,2]
[362187339,1748074239424,-327.95,0.00034521,2]
[362187341,1748074239433,-1159.67,0.00034521,2]
[362187344,1748074239443,-1159.67,0.00034521,2]
[362187346,1748074239453,-162.91,0.00034521,2]
[362187348,1748074239462,-150.43,0.00034521,2]
[362187350,1748074239472,-1156.17,0.00034521,2]
[362187352,1748074239481,-340.17,0.00034521,2]
[362187354,1748074239490,-162.91,0.00034521,2]
[362187355,1748074239499,-500.0,0.000346,12]
[362187358,1748074239509,-269.0,0.000346,30]
[362187360,1748074239519,-150.0,0.00034639,2]
[362187362,1748074239528,-192.60938,0.0003464,2]
[362187364,1748074239538,-1000.0,0.00034677,2]
[362187366,1748074239547,-168.48308272,0.00034682,2]
[362187367,1748074239557,-1772.56530802,0.0003469,2]
[362187370,1748074239566,-17285.87932261,0.00034691,2]
[362187372,1748074239577,-18233.98388668,0.00034693,2]
[362187373,1748074239586,-1000.0,0.000347,12]
[362187375,1748074239596,-17285.87932243,0.00034702,2]
[362187377,1748074239605,-17285.87932243,0.00034713,2]
[362187380,1748074239615,-17285.87932243,0.00034724,2]
[362187382,1748074239625,-150.0,0.00034728,2]
[362187384,1748074239634,-17285.87932243,0.00034735,2]
[362187385,1748074239643,-150.0,0.00034742,2]
[362187387,1748074239653,-16056.12589759,0.00034746,2]
[362187392,1748074239682,-1229.75342484,0.00034746,2]
[362187393,1748074239691,-150.0,0.00034746,2]
[362187396,1748074239701,-150.0,0.00034746,2]
[362187398,1748074239711,-150.0,0.0003475,2]
[362187400,1748074239721,-150.0,0.0003475,2]
[362187402,1748074239730,-150.0,0.00034751,2]
[362187404,1748074239740,-17285.87932243,0.00034757,2]
[362187406,1748074239749,-159.35888716,0.00034758,15]
[362187408,1748074239760,-500.0,0.0003476,120]
[362187409,1748074239769,-150.0,0.00034765,2]
[362187411,1748074239779,-10564.58491027,0.00034768,2]
[362187414,1748074239790,-6721.29441216,0.00034768,2]
[362187416,1748074239799,-500.0,0.00034772,7]
[362187418,1748074239809,-150.0,0.00034775,2]
[362187420,1748074239818,-206.22256382,0.00034775,31]
[362187422,1748074239828,-17285.87932243,0.00034779,2]
[362187424,1748074239838,-150.0,0.00034781,2]
[362187426,1748074239847,-150.0,0.00034784,2]
[362187428,1748074239856,-150.0,0.00034785,2]
[362187430,1748074239865,-2627.24260621,0.0003479,2]
[362187432,1748074239875,-10309.02865919,0.0003479,2]
[362187434,1748074239887,-575.79183066,0.0003479,2]
[362187436,1748074239899,-6401.05883258,0.0003479,2]
[362187438,1748074239908,-335.30433616,0.0003479,2]
[362187440,1748074239919,-664.69566384,0.0003479,2]
[362187442,1748074239929,-2500.0,0.0003479,2]
[362187444,1748074239939,-1500.0,0.000348,12]
[362187446,1748074239949,-155.5,0.000348,31]
[362187448,1748074239958,-155.5,0.000348,31]
[362187450,1748074239967,-155.5,0.000348,31]
[362187452,1748074239976,-155.5,0.000348,31]
[362187454,1748074239986,-155.5,0.000348,31]
[362187456,1748074239998,-155.5,0.000348,31]
[362187458,1748074240008,-155.5,0.000348,31]
[362187460,1748074240018,-17285.87932243,0.00034801,2]
[362187462,1748074240030,-150.0,0.00034807,2]
[362187464,1748074240043,-1000.0,0.00034809,2]
[362187466,1748074240054,-17285.87932243,0.00034812,2]
[362187468,1748074240063,-17285.87932243,0.00034823,2]
[362187470,1748074240075,-388.0,0.00034824,5]
[362187472,1748074240083,-150.0,0.00034824,2]
[362187474,1748074240093,-2000.0,0.00034824,3]
[362187476,1748074240102,-150.0,0.00034825,2]
[362187478,1748074240111,-150.0,0.00034828,2]
[362187480,1748074240121,-17285.87932243,0.00034834,2]
[362187482,1748074240130,-150.0,0.00034838,2]
[362187484,1748074240141,-150.0,0.00034839,2]
[362187485,1748074240150,-700.0,0.00034842,7]
[362187486,1748074240161,-17285.87932243,0.00034845,2]
[362187487,1748074240171,-150.0,0.00034852,2]
[362187488,1748074240180,-17285.87932243,0.00034856,2]
[362187489,1748074240189,-150.0,0.00034856,2]
[362187490,1748074240199,-150.0,0.00034861,2]
[362187491,1748074240207,-3872.021979,0.00034867,2]
[362187492,1748074240219,-791.32567742,0.00034867,2]
[362187506,1748074240363,-922.63822492,0.00034867,2]
[362187593,1748074241189,-11699.89344109,0.00034867,2]
[362187595,1748074241200,-500.0,0.00034873,5]
[362187598,1748074241210,-157.86821583,0.00034873,5]
[362187600,1748074241220,-17285.87932243,0.00034878,2]
[362187602,1748074241229,-10000.0,0.0003488,120]
[362187604,1748074241238,-55534.6581872,0.0003488,3]
[362187636,1748074241531,-17285.87932243,0.00034889,2]
[362187640,1748074241555,-547.8687127,0.00034889,2]
[362187642,1748074241570,-421.7912954,0.00034889,2]
[362187644,1748074241579,-420.0,0.00034889,2]
[362187646,1748074241589,-500.0,0.0003489,2]
[362187648,1748074241598,-2332.7736,0.0003489,2]
[362187650,1748074241607,-207024.8929,0.0003489,2]
[362187652,1748074241616,-1000.0,0.0003489,2]
[362187654,1748074241626,-150.0,0.00034893,2]
[362187656,1748074241636,-150.0,0.00034893,2]
[362187658,1748074241645,-150.0,0.00034895,2]
[362187660,1748074241654,-438.44696866,0.000349,2]
[362187662,1748074241666,-387.0,0.000349,2]
[362187664,1748074241676,-5000.0,0.000349,2]
[362187667,1748074241700,-2000.0,0.000349,12]
[362187669,1748074241717,-17285.87932243,0.000349,2]
[362187671,1748074241726,-173.89385774,0.00034921,2]
[362187673,1748074241735,-222.88370399,0.00034923,2]
[362187675,1748074241747,-1772.56530798,0.00034924,2]
[362187677,1748074241756,-500.0,0.00034931,7]
[362187679,1748074241765,-150.0,0.00034934,2]
[362187681,1748074241774,-861.32,0.00034939,2]
[362187683,1748074241784,-150.0,0.00034941,2]
[362187685,1748074241793,-150.0,0.00034942,2]
[362187687,1748074241802,-150.0,0.00034943,2]
[362187689,1748074241813,-505.0,0.00034948,2]
[362187691,1748074241823,-150.0,0.00034949,2]
[362187693,1748074241833,-350.0,0.00034955,2]
[362187695,1748074241843,-13883.6645468,0.0003496,3]
[362187697,1748074241853,-700.0,0.00034965,7]
[362187699,1748074241863,-300.0,0.0003497,2]
[362187701,1748074241872,-300.0,0.0003497,2]
[362187703,1748074241882,-400.0,0.0003497,2]
[362187705,1748074241892,-400.0,0.0003497,2]
[362187707,1748074241901,-700.0,0.00034972,7]
[362187709,1748074241913,-719.04747942,0.00034978,2]
[362187711,1748074241923,-162.380719,0.00034978,2]
[362187713,1748074241932,-1491.30447232,0.00034979,2]
[362187715,1748074241942,-150.0,0.00034979,2]
[362187717,1748074241952,-801.85129955,0.0003498,2]
[362187719,1748074241961,-150.0,0.0003498,2]
[362187721,1748074241971,-194371.303655,0.0003498,3]
[362187724,1748074241981,-23041.5788784,0.0003498,3]
[362187726,1748074241992,-1920.1315732,0.00034983,3]
[362187728,1748074242007,-150.0,0.00034983,2]
[362187730,1748074242016,-150.0,0.00034984,2]
[362187732,1748074242026,-299.89622155,0.00034986,7]
[362187734,1748074242035,-150.0,0.00034986,7]
[362187736,1748074242045,-150.0,0.00034986,7]
[362187737,1748074242054,-150.0,0.00034986,7]
[362187740,1748074242064,-150.0,0.00034986,7]
[362187741,1748074242073,-150.0,0.00034986,7]
[362187742,1748074242083,-150.54581987,0.00034986,7]
[362187744,1748074242092,-150.0,0.00034986,7]
[362187746,1748074242101,-151.02223181,0.00034986,7]
[362187748,1748074242111,-150.0,0.00034986,7]
[362187750,1748074242120,-150.82566053,0.00034986,7]
[362187752,1748074242130,-2238.0,0.00034986,2]
[362187754,1748074242140,-150.0,0.00034987,7]
[362187756,1748074242150,-150.0,0.00034988,7]
[362187758,1748074242162,-150.0,0.00034989,7]
[362187760,1748074242172,-13883.6645468,0.00034989,3]
[362187762,1748074242181,-1920.1315732,0.00034989,3]
[362187764,1748074242191,-242.92487983,0.00034989,2]
[362187766,1748074242200,-2003.63415836,0.00034989,2]
[362187768,1748074242209,-150.0,0.0003499,7]
[362187770,1748074242219,-150.0,0.0003499,7]
[362187772,1748074242229,-150.0,0.0003499,7]
[362187774,1748074242238,-55534.6581872,0.0003499,3]
[362187776,1748074242248,-34562.3683176,0.0003499,3]
[362187778,1748074242258,-153.56,0.0003499,2]
[362187780,1748074242268,-153.56,0.0003499,2]
[362187782,1748074242277,-153.56,0.0003499,2]
[362187784,1748074242287,-153.56,0.0003499,2]
[362187786,1748074242296,-153.56,0.0003499,2]
[362187788,1748074242306,-153.56,0.0003499,2]
[362187790,1748074242315,-153.56,0.0003499,2]
[362187792,1748074242325,-153.56,0.0003499,2]
[362187794,1748074242334,-150.0,0.00034991,7]
[362187796,1748074242343,-150.0,0.00034991,7]
[362187798,1748074242353,-732.7508032,0.00034991,2]
[362187800,1748074242362,-150.0,0.00034991,7]
[362187802,1748074242372,-150.0,0.00034992,7]
[362187804,1748074242381,-17062.9337271,0.00034993,2]
[362187806,1748074242391,-362.09042226,0.00034993,2]
[362187808,1748074242400,-848.41944827,0.00034993,2]
[362187809,1748074242410,-366.5139706,0.00034993,2]
[362187810,1748074242420,-25503.6782301,0.00034993,2]
[362187811,1748074242429,-150.0,0.00034993,7]
[362187812,1748074242439,-150.0,0.00034993,7]
[362187813,1748074242448,-150.0,0.00034993,7]
[362187814,1748074242457,-150.0,0.00034993,7]
[362187815,1748074242466,-150.0,0.00034993,7]
[362187816,1748074242476,-150.0,0.00034994,2]
[362187817,1748074242485,-150.0,0.00034994,7]
[362187818,1748074242494,-150.0,0.00034995,7]
[362187819,1748074242503,-150.0,0.00034995,7]
[362187820,1748074242512,-150.0,0.00034995,7]
[362187821,1748074242522,-150.0,0.00034997,7]
[362187823,1748074242531,-150.0,0.00034997,7]
[362187825,1748074242540,-150.0,0.00034997,7]
[362187828,1748074242550,-150.0,0.00034997,2]
[362187829,1748074242559,-150.0,0.00034998,7]
[362187831,1748074242568,-150.0,0.00034998,7]
[362187834,1748074242578,-150.0,0.00034999,7]
[362187836,1748074242587,-5000.0,0.00034999,2]
[362187838,1748074242596,-156.0,0.00034999,30]
[362187840,1748074242606,-500.0,0.00034999,7]
[362187842,1748074242615,-283.1425,0.00034999,2]
[362187844,1748074242624,-1022201.54059131,0.00035,60]
[362187846,1748074242633,-214203.59066385,0.00035,60]
[362187848,1748074242645,-5000.0,0.00035,60]
[362187854,1748074242700,-609.29320011,0.00035,60]
[362187944,1748074243508,-770.69613598,0.00030726,2]
[362187946,1748074243520,-387.58786402,0.00030726,2]
[362187948,1748074243529,-223.39865261,0.00033726,2]
[362187950,1748074243541,-928.60134739,0.00033726,2]
[362187953,1748074243551,-296.80314603,0.00035,60]
[362187956,1748074243562,-2493.1,0.00035,60]
[362187959,1748074243574,-650.0,0.00035,60]
[362187965,1748074243599,-1270.85172194,0.00035,60]
[362188160,1748074245995,-345.0,0.00034812,5]
[362188161,1748074246006,-32035.70982924,0.00035,60]
[362188179,1748074251474,-111693.39683292,0.00035,60]
[362188180,1748074251484,-194128.6217665,0.00035,60]
[362188181,1748074251493,-900.0,0.00035,36]
[362188182,1748074251502,-1199.19991996,0.00035,2]
[362188183,1748074251512,-205961.32137342,0.00035,2]
[362188184,1748074251521,-228.44635911,0.00035,2]
[362188185,1748074251531,-160.12116527,0.00035,120]
[362188186,1748074251540,-300.0,0.00035,120]
[362188187,1748074251549,-1086.33426038,0.00035,15]
[362188188,1748074251558,-43732.0,0.00035,120]
[362188189,1748074251568,-4373.0,0.00035,120]
[362188190,1748074251577,-64353.71910541,0.00035,2]
[362188191,1748074251606,-724.069462,0.00035,2]
[362188193,1748074450848,515.34608903,0.0002,120]
[362188194,1748074612458,449.0,0.00027397,120]
[362188195,1748074690901,150.49,0.00013699,2]
[362188196,1748074805495,1571.42749666,0.00018,3]
[362188198,1748075048359,250.0,0.00015,2]
[362188199,1748075049447,300.0,0.00017,2]
[362188205,1748075132684,301.18743169,0.0002,120]
[362188207,1748075215127,-226.9940667,0.00019,2]
[362188208,1748075236117,-123.0059333,0.00019,2]
[362188209,1748075236141,-200.0,0.000195,7]
[362188210,1748075236165,-500.0,0.000196,7]
[362188211,1748075236188,-630.1349341,0.000197,7]
[362188212,1748075246090,-169.8650659,0.000197,7]
[362188213,1748075246112,-1100.0,0.000198,7]
[362188214,1748075246132,-329.64273635,0.00019899,2]
[362188215,1748075294379,1000.0,0.000135,2]
[362188216,1748075297317,1000.0,0.00027397,120]
[362188217,1748075307443,1000.0,0.00027397,120]
[362188218,1748075307851,1021.72979894,0.00018,2]
[362188219,1748075309197,665.25458983,0.00025,120]
[362188220,1748075310162,698.74203613,0.00027,120]
[362188221,1748075312250,3041.82653213,0.0002739,120]
[362188222,1748075312881,2148.83955316,0.00025,120]
[362188225,1748075321400,8358.26475459,0.00013368,2]
[362188226,1748075322912,226.11,0.00027,120]
[362188227,1748075323764,1645.39242161,0.00027,120]
[362188228,1748075347946,161.49,0.00027,120]
[362188229,1748075355130,-300.0,0.00019898,2]
[362188230,1748075355152,-7930.822138,0.00019899,2]
[362188231,1748075364102,-5140.41849634,0.00019899,2]
[362188232,1748075370116,-1599.11662931,0.00019899,2]
[362188233,1748075370138,-1400.0,0.000199,7]
[362188234,1748075370159,-159.35888716,0.000199,2]
[362188235,1748075370191,-8500.74740592,0.000199,2]
[362188236,1748075370215,-6046.76458392,0.000199,2]
[362188237,1748075370237,-413.69958689,0.00019999,2]
[362188238,1748075370259,-475.34712757,0.00019999,2]
[362188239,1748075370280,-500.0,0.00019999,2]
[362188240,1748075370302,-401.82666409,0.00019999,2]
[362188241,1748075370325,-11514.02522281,0.0002,2]
[362188242,1748075370660,1000.0,0.00027397,120]
[362188243,1748075397575,500.0,0.00027397,120]
[362188254,1748075432228,-1629.87759636,0.000199,2]
[362188255,1748075432238,-610.44244028,0.000199,2]
[362188256,1748075432247,-168.48308271,0.000199,2]
[362188257,1748075432257,-5181.62340854,0.000199,2]
[362188258,1748075432266,-250.0,0.00019973,2]
[362188259,1748075432276,-153.56,0.0001999,2]
[362188260,1748075432285,-153.56,0.0001999,2]
[362188261,1748075432294,-153.56,0.0001999,2]
[362188262,1748075432304,-153.56,0.0001999,2]
[362188263,1748075432314,-153.56,0.0001999,2]
[362188264,1748075432323,-153.56,0.0001999,2]
[362188265,1748075432333,-153.56,0.0001999,2]
[362188266,1748075432342,-153.56,0.0001999,2]
[362188267,1748075432352,-1200.0,0.00019999,2]
[362188268,1748075432362,-500.0,0.00019999,2]
[362188269,1748075432371,-500.0,0.00019999,2]
[362188270,1748075432380,-500.0,0.00019999,2]
[362188271,1748075432390,-500.0,0.00019999,2]
[362188272,1748075432399,-500.0,0.00019999,2]
[362188273,1748075432409,-200.0,0.00019999,2]
[362188274,1748075432418,-500.0,0.00019999,2]
[362188276,1748075432427,-500.0,0.00019999,2]
[362188278,1748075432437,-500.0,0.00019999,2]
[362188280,1748075432446,-578.83177695,0.00019999,2]
[362188282,1748075432457,-42788.66837845,0.0002,2]
[362188284,1748075432468,-887.09610026,0.0002,2]
[362188286,1748075432479,-2978.3828354,0.0002,2]
[362188288,1748075432491,-350.0,0.0002,2]
[362188291,1748075432503,-545.44642781,0.0002,2]
[362188293,1748075432515,-1552.831098,0.0002,2]
[362188297,1748075432547,-11593.8968724,0.0002,2]
[362188301,1748075432572,-21495.98031176,0.0002,2]
[362188303,1748075432589,-525.97462945,0.0002,2]
[362188427,1748075438025,-300.0,0.00019989,2]
[362188428,1748075438035,-151.09712398,0.0001999,2]
[362188429,1748075438050,-10.85279591,0.0001999,2]
[362188430,1748075438062,-161.94991989,0.0001999,2]
[362188431,1748075438072,-3266.1972842,0.0002,2]
[362188432,1748075438084,-2076.60669327,0.0002,2]
[362188433,1748075438097,-1240.07,0.0002,2]
[362188434,1748075438140,-10765.0,0.0002,2]
[362188435,1748075438215,-3229.23732841,0.0002,2]
[362188436,1748075438375,-29897.71941735,0.0002,2]
[362188437,1748075438390,-8355.461751,0.0002,2]
[362188438,1748075438404,-36008.590824,0.0002,2]
[362188439,1748075438416,-8606.08787337,0.0002,2]
[362188476,1748075440199,-254.29,0.0002,2]
[362188477,1748075440569,-596.76669111,0.0002,2]
[362188478,1748075440623,-1633.00973577,0.0002,2]
[362188479,1748075440682,-1319.5944506,0.0002,2]
[362188503,1748075443258,-988.13522949,0.0002,2]
[362188504,1748075443270,-358691.77567379,0.0002,2]
[362188505,1748075443283,-6993.6,0.0002,2]
[362188506,1748075443358,-491.95238989,0.0002,2]
[362188507,1748075443386,-7800.0,0.0002,2]
[362188508,1748075443479,-274.57349424,0.0002,2]
[362188519,1748075446273,-3033082.13288099,0.0002,2]
[362188520,1748075446284,-6323.1,0.0002,2]
[362188521,1748075446324,-25571.9571347,0.0002,2]
[362188522,1748075446377,-341.77000004,0.0002,2]
[362188523,1748075446422,-384.09141926,0.0002,2]
[362188524,1748075446434,-1425.59731421,0.0002,2]
[362188525,1748075446448,-14192.82929459,0.0002,2]
[362188526,1748075543341,227.0,0.0002739,120]
[362188527,1748075667299,361.272,0.00018578,2]
[362188528,1748075720741,156.98,0.00013699,2]
[362188535,1748075886040,1176.25,0.00025459,120]
[362188552,1748075939039,3159.4320156,0.0002739,120]
[362188563,1748076003608,3043.95911826,0.00016974,2]
[362188581,1748076427101,-361.27193,0.00018476,2]
[362188582,1748076427124,-127.46302118,0.00018569,2]
[362188583,1748076428140,-939.0435076,0.00018569,2]
[362188584,1748076433096,-133.49347122,0.00018569,2]
[362188585,1748076433120,-300.0,0.00018569,2]